[Event "*** Titled Tuesday Blitz"]
[Site "Chess.com"]
[Date "2020.05.19"]
[Round "7"]
[White "Love_craft"]
[Black "51616516516"]
[Result "0-1"]
[WhiteElo "2489"]
[BlackElo "2344"]
[TimeControl "180+1"]
[EndTime "13:22:11 PDT"]
[Termination "51616516516 won by checkmate"]

1. Nf3 {[%clk 0:03:00.9]} 1... Nf6 {[%clk 0:02:59.5]} 2. g3 {[%clk 0:03:01]}
2... c5 {[%clk 0:02:53.5]} 3. Bg2 {[%clk 0:03:00.8]} 3... Nc6 {[%clk 0:02:54.1]}
4. O-O {[%clk 0:03:01.7]} 4... g6 {[%clk 0:02:54.2]} 5. d3 {[%clk 0:03:02.6]}
5... Bg7 {[%clk 0:02:54.6]} 6. e4 {[%clk 0:03:03.2]} 6... O-O {[%clk 0:02:54.9]}
7. Nh4 {[%clk 0:03:03.4]} 7... d6 {[%clk 0:02:53.7]} 8. f4 {[%clk 0:03:03.3]}
8... Rb8 {[%clk 0:02:46.8]} 9. h3 {[%clk 0:02:59.8]} 9... Nh5 {[%clk 0:02:36.2]}
10. Kh2 {[%clk 0:02:55.7]} 10... b5 {[%clk 0:02:12.3]} 11. g4 {[%clk 0:02:51.2]}
11... e5 {[%clk 0:02:06.1]} 12. Nxg6 {[%clk 0:01:47.9]} 12... fxg6 {[%clk
0:01:48.8]} 13. gxh5 {[%clk 0:01:47.6]} 13... exf4 {[%clk 0:01:49.2]} 14. hxg6
{[%clk 0:01:39.2]} 14... hxg6 {[%clk 0:01:49.2]} 15. Nd2 {[%clk 0:01:38.5]}
15... Qh4 {[%clk 0:01:41.5]} 16. Nf3 {[%clk 0:00:46.1]} 16... Qg3+ {[%clk
0:01:40.5]} 17. Kh1 {[%clk 0:00:46.5]} 17... Bxh3 {[%clk 0:01:40.8]} 18. Bxh3
{[%clk 0:00:47.3]} 18... Qxh3+ {[%clk 0:01:39.7]} 19. Nh2 {[%clk 0:00:48]} 19...
g5 {[%clk 0:01:08.5]} 20. c3 {[%clk 0:00:27.4]} 20... b4 {[%clk 0:01:02.8]} 21.
Qb3+ {[%clk 0:00:20.4]} 21... Kh8 {[%clk 0:00:59.2]} 22. Rf3 {[%clk 0:00:18.6]}
22... Qh4 {[%clk 0:00:56]} 23. Qc2 {[%clk 0:00:12.3]} 23... g4 {[%clk
0:00:53.3]} 24. Rxf4 {[%clk 0:00:11.2]} 24... Rxf4 {[%clk 0:00:52.5]} 25. Bxf4
{[%clk 0:00:12.1]} 25... g3 {[%clk 0:00:51.5]} 26. Bxd6 {[%clk 0:00:11.4]} 26...
Rd8 {[%clk 0:00:39.8]} 27. Bxc5 {[%clk 0:00:10.1]} 27... bxc3 {[%clk 0:00:38.6]}
28. bxc3 {[%clk 0:00:09.9]} 28... Rxd3 {[%clk 0:00:18.9]} 29. Rg1 {[%clk
0:00:03.7]} 29... Rxc3 {[%clk 0:00:18.5]} 30. Qg2 {[%clk 0:00:02.8]} 30... Qxh2+
{[%clk 0:00:18.1]} 31. Qxh2+ {[%clk 0:00:03]} 31... gxh2 {[%clk 0:00:18.5]} 32.
Rg5 {[%clk 0:00:03]} 32... Bf6 {[%clk 0:00:14.3]} 33. Rh5+ {[%clk 0:00:02.4]}
33... Kg7 {[%clk 0:00:12.9]} 34. Kxh2 {[%clk 0:00:02.9]} 34... Rc2+ {[%clk
0:00:12.8]} 35. Kg3 {[%clk 0:00:03.3]} 35... Be5+ {[%clk 0:00:09.4]} 36. Kg4
{[%clk 0:00:03.1]} 36... Rxc5 {[%clk 0:00:09.1]} 37. Rh1 {[%clk 0:00:02.8]}
37... Rc2 {[%clk 0:00:07.5]} 38. Kf5 {[%clk 0:00:02.9]} 38... Bc3 {[%clk
0:00:05.3]} 39. Rg1+ {[%clk 0:00:02.7]} 39... Kf7 {[%clk 0:00:05.1]} 40. Rh1
{[%clk 0:00:02.5]} 40... Rf2+ {[%clk 0:00:05.5]} 41. Kg4 {[%clk 0:00:02.7]}
41... Rxa2 {[%clk 0:00:03.6]} 42. Rh7+ {[%clk 0:00:02.2]} 42... Ke6 {[%clk
0:00:03.9]} 43. Rc7 {[%clk 0:00:01.8]} 43... Ne5+ {[%clk 0:00:03.5]} 44. Kg3
{[%clk 0:00:01.5]} 44... Bd4 {[%clk 0:00:04.4]} 45. Rb7 {[%clk 0:00:01.6]} 45...
Ra3+ {[%clk 0:00:04.7]} 46. Kg2 {[%clk 0:00:01.7]} 46... a5 {[%clk 0:00:05.3]}
47. Rb8 {[%clk 0:00:02.1]} 47... Ra2+ {[%clk 0:00:05.5]} 48. Kh3 {[%clk
0:00:01.9]} 48... a4 {[%clk 0:00:06.4]} 49. Kh4 {[%clk 0:00:02.2]} 49... a3
{[%clk 0:00:06]} 50. Ra8 {[%clk 0:00:02.7]} 50... Ra1 {[%clk 0:00:05.5]} 51. Kg3
{[%clk 0:00:02.8]} 51... a2 {[%clk 0:00:05.4]} 52. Kh2 {[%clk 0:00:03]} 52...
Kf6 {[%clk 0:00:05.7]} 53. Ra6+ {[%clk 0:00:03]} 53... Kg5 {[%clk 0:00:05.9]}
54. Ra4 {[%clk 0:00:03.9]} 54... Be3 {[%clk 0:00:04.9]} 55. Ra3 {[%clk
0:00:04.2]} 55... Kf4 {[%clk 0:00:05]} 56. Kg2 {[%clk 0:00:04.5]} 56... Kxe4
{[%clk 0:00:05.2]} 57. Kh2 {[%clk 0:00:04.8]} 57... Bd4 {[%clk 0:00:05]} 58. Ra4
{[%clk 0:00:05]} 58... Ng4+ {[%clk 0:00:03.5]} 59. Kg2 {[%clk 0:00:04.9]} 59...
Rg1+ {[%clk 0:00:03.7]} 60. Kh3 {[%clk 0:00:05.3]} 60... a1=Q {[%clk 0:00:02.1]}
61. Rxd4+ {[%clk 0:00:05.3]} 61... Kxd4 {[%clk 0:00:01.8]} 62. Kh4 {[%clk
0:00:05.4]} 62... Qa2 {[%clk 0:00:02.7]} 63. Kg5 {[%clk 0:00:05.7]} 63... Qa5+
{[%clk 0:00:03]} 64. Kh4 {[%clk 0:00:05.8]} 64... Ne3 {[%clk 0:00:03.9]} 65. Kh3
{[%clk 0:00:06.6]} 65... Qh5# {[%clk 0:00:02.9]} 0-1

[Event "*** Titled Tuesday Blitz"]
[Site "Chess.com"]
[Date "2020.05.19"]
[Round "7"]
[White "Orest_Vovk"]
[Black "GameOverBro"]
[Result "1-0"]
[WhiteElo "2385"]
[BlackElo "2506"]
[TimeControl "180+1"]
[EndTime "13:22:17 PDT"]
[Termination "Orest_Vovk won on time"]

1. e4 {[%clk 0:03:00.9]} 1... d6 {[%clk 0:02:59.7]} 2. Be2 {[%clk 0:03:00.3]}
2... Nf6 {[%clk 0:02:54.6]} 3. d3 {[%clk 0:02:54.6]} 3... e5 {[%clk 0:02:47.5]}
4. f4 {[%clk 0:02:54]} 4... Nc6 {[%clk 0:02:44.7]} 5. Nf3 {[%clk 0:02:53.9]}
5... g6 {[%clk 0:02:43.7]} 6. O-O {[%clk 0:02:53.7]} 6... Bg7 {[%clk 0:02:44.2]}
7. Nc3 {[%clk 0:02:50.8]} 7... O-O {[%clk 0:02:34.5]} 8. f5 {[%clk 0:02:29.4]}
8... d5 {[%clk 0:02:20.5]} 9. fxg6 {[%clk 0:02:23.9]} 9... hxg6 {[%clk
0:02:11.3]} 10. Bg5 {[%clk 0:02:22.1]} 10... dxe4 {[%clk 0:02:10]} 11. Nxe4
{[%clk 0:02:15.2]} 11... Bf5 {[%clk 0:02:08.3]} 12. Ng3 {[%clk 0:02:08]} 12...
Nd4 {[%clk 0:01:58]} 13. Nxf5 {[%clk 0:01:50.5]} 13... Nxf5 {[%clk 0:01:55.5]}
14. g4 {[%clk 0:01:36.1]} 14... Nd4 {[%clk 0:01:39.1]} 15. c3 {[%clk 0:01:18.5]}
15... Nxf3+ {[%clk 0:01:20.6]} 16. Rxf3 {[%clk 0:01:11.2]} 16... Qd6 {[%clk
0:01:21.1]} 17. h3 {[%clk 0:01:04.9]} 17... Rae8 {[%clk 0:01:03.8]} 18. Qf1
{[%clk 0:00:56]} 18... Nd5 {[%clk 0:00:58.8]} 19. Qf2 {[%clk 0:00:50.6]} 19...
a5 {[%clk 0:00:50.9]} 20. Rf1 {[%clk 0:00:47.5]} 20... f6 {[%clk 0:00:51.1]} 21.
Bc1 {[%clk 0:00:44.8]} 21... b6 {[%clk 0:00:42.6]} 22. h4 {[%clk 0:00:40]} 22...
Qe6 {[%clk 0:00:40.9]} 23. Rh3 {[%clk 0:00:30.2]} 23... Nf4 {[%clk 0:00:33.1]}
24. Rh2 {[%clk 0:00:18.1]} 24... f5 {[%clk 0:00:25.2]} 25. g5 {[%clk 0:00:12.1]}
25... Nxe2+ {[%clk 0:00:19.8]} 26. Qxe2 {[%clk 0:00:13]} 26... e4 {[%clk
0:00:20.3]} 27. Bf4 {[%clk 0:00:08.1]} 27... exd3 {[%clk 0:00:19.8]} 28. Qxd3
{[%clk 0:00:07.9]} 28... Be5 {[%clk 0:00:17]} 29. Bxe5 {[%clk 0:00:07]} 29...
Qxe5 {[%clk 0:00:17.2]} 30. h5 {[%clk 0:00:07.5]} 30... Qe4 {[%clk 0:00:14.8]}
31. Qxe4 {[%clk 0:00:06.3]} 31... Rxe4 {[%clk 0:00:15.7]} 32. hxg6 {[%clk
0:00:06.8]} 32... Kg7 {[%clk 0:00:16.3]} 33. Rh7+ {[%clk 0:00:06.5]} 33... Kxg6
{[%clk 0:00:16.9]} 34. Rxc7 {[%clk 0:00:07.2]} 34... Rg4+ {[%clk 0:00:16.2]} 35.
Kf2 {[%clk 0:00:07.4]} 35... Rf4+ {[%clk 0:00:15.9]} 36. Kg2 {[%clk 0:00:06.9]}
36... Rg4+ {[%clk 0:00:16.2]} 37. Kf3 {[%clk 0:00:07.2]} 37... Rh8 {[%clk
0:00:14.3]} 38. Rf2 {[%clk 0:00:07.1]} 38... Rh3+ {[%clk 0:00:12.9]} 39. Ke2
{[%clk 0:00:07.3]} 39... Re4+ {[%clk 0:00:12]} 40. Kd2 {[%clk 0:00:07.3]} 40...
Kxg5 {[%clk 0:00:12]} 41. Rg7+ {[%clk 0:00:06]} 41... Kf6 {[%clk 0:00:10.4]} 42.
Rg8 {[%clk 0:00:06]} 42... Rh5 {[%clk 0:00:08.6]} 43. Rb8 {[%clk 0:00:05.6]}
43... Re6 {[%clk 0:00:08.5]} 44. Rf8+ {[%clk 0:00:05.2]} 44... Kg6 {[%clk
0:00:07.8]} 45. Rg2+ {[%clk 0:00:04.7]} 45... Kh7 {[%clk 0:00:06.7]} 46. Rf7+
{[%clk 0:00:04.7]} 46... Kh6 {[%clk 0:00:06.1]} 47. Rf8 {[%clk 0:00:04.3]} 47...
Rg5 {[%clk 0:00:03.8]} 48. Rh8+ {[%clk 0:00:04]} 48... Kg7 {[%clk 0:00:04.4]}
49. Rxg5+ {[%clk 0:00:03.4]} 49... Kxh8 {[%clk 0:00:04.8]} 50. Rxf5 {[%clk
0:00:04.3]} 50... Kg7 {[%clk 0:00:04.8]} 51. Rd5 {[%clk 0:00:03.9]} 51... Kf7
{[%clk 0:00:05]} 52. Rd3 {[%clk 0:00:04.8]} 52... Ke7 {[%clk 0:00:05.2]} 53. Re3
{[%clk 0:00:05.1]} 53... Kd6 {[%clk 0:00:05.3]} 54. Rxe6+ {[%clk 0:00:04.6]}
54... Kxe6 {[%clk 0:00:06.2]} 55. Ke3 {[%clk 0:00:05.2]} 55... Kd5 {[%clk
0:00:07]} 56. Kd3 {[%clk 0:00:05.4]} 56... Kc5 {[%clk 0:00:07.4]} 57. b3 {[%clk
0:00:05.4]} 57... Kd5 {[%clk 0:00:06.7]} 58. c4+ {[%clk 0:00:05.1]} 58... Kc5
{[%clk 0:00:07.1]} 59. Kc3 {[%clk 0:00:05.7]} 59... Kc6 {[%clk 0:00:07.6]} 60.
Kd4 {[%clk 0:00:06.1]} 60... Kd6 {[%clk 0:00:07.9]} 61. a3 {[%clk 0:00:05.6]}
61... Kc6 {[%clk 0:00:08.3]} 62. b4 {[%clk 0:00:05.7]} 62... axb4 {[%clk
0:00:09.2]} 63. axb4 {[%clk 0:00:06.1]} 63... Kd6 {[%clk 0:00:10.1]} 64. Ke4
{[%clk 0:00:06.5]} 64... Ke6 {[%clk 0:00:10.4]} 65. Kd3 {[%clk 0:00:06.5]} 65...
Ke5 {[%clk 0:00:10.5]} 66. Ke3 {[%clk 0:00:06.8]} 66... Ke6 {[%clk 0:00:09.9]}
67. Ke4 {[%clk 0:00:06.8]} 67... Kd6 {[%clk 0:00:10]} 68. Kd4 {[%clk 0:00:07.2]}
68... Ke6 {[%clk 0:00:09]} 69. Kc3 {[%clk 0:00:06.5]} 69... Ke5 {[%clk
0:00:08.8]} 70. Kd3 {[%clk 0:00:06]} 70... Ke6 {[%clk 0:00:06.8]} 71. Kc2 {[%clk
0:00:06.2]} 71... Ke5 {[%clk 0:00:07]} 72. Kb3 {[%clk 0:00:05.5]} 72... Kd4
{[%clk 0:00:06.7]} 73. b5 {[%clk 0:00:04.7]} 73... Kc5 {[%clk 0:00:04.9]} 74.
Kc3 {[%clk 0:00:05.2]} 74... Kd6 {[%clk 0:00:04]} 75. Kd2 {[%clk 0:00:03.6]}
75... Kc5 {[%clk 0:00:03.6]} 76. Kd3 {[%clk 0:00:04.1]} 76... Kd6 {[%clk
0:00:03.7]} 77. Kd4 {[%clk 0:00:04.6]} 77... Ke6 {[%clk 0:00:04.1]} 78. c5
{[%clk 0:00:04.9]} 78... bxc5+ {[%clk 0:00:04.2]} 79. Kxc5 {[%clk 0:00:05.8]}
79... Kd7 {[%clk 0:00:04.7]} 80. Kb6 {[%clk 0:00:06.3]} 1-0

[Event "*** Titled Tuesday Blitz"]
[Site "Chess.com"]
[Date "2020.05.19"]
[Round "7"]
[White "Shukh_Nikolay"]
[Black "Norival"]
[Result "1/2-1/2"]
[WhiteElo "2547"]
[BlackElo "2668"]
[TimeControl "180+1"]
[EndTime "13:22:19 PDT"]
[Termination "Game drawn by agreement"]

1. e4 {[%clk 0:03:00.9]} 1... e5 {[%clk 0:02:57.6]} 2. Nf3 {[%clk 0:03:00.3]}
2... Nc6 {[%clk 0:02:56.9]} 3. Bb5 {[%clk 0:02:59.7]} 3... a6 {[%clk 0:02:55.9]}
4. Ba4 {[%clk 0:02:59.6]} 4... d6 {[%clk 0:02:54.4]} 5. c4 {[%clk 0:02:50.6]}
5... Nf6 {[%clk 0:02:52.3]} 6. Nc3 {[%clk 0:02:49.2]} 6... Bd7 {[%clk
0:02:52.3]} 7. O-O {[%clk 0:02:45.4]} 7... g6 {[%clk 0:02:52.6]} 8. d4 {[%clk
0:02:34.9]} 8... exd4 {[%clk 0:02:51.6]} 9. Bxc6 {[%clk 0:02:29.9]} 9... bxc6
{[%clk 0:02:17]} 10. Nxd4 {[%clk 0:02:30.8]} 10... Bg7 {[%clk 0:02:15.8]} 11. h3
{[%clk 0:02:29.2]} 11... O-O {[%clk 0:02:15.5]} 12. Bg5 {[%clk 0:02:28.3]} 12...
h6 {[%clk 0:02:14.9]} 13. Bh4 {[%clk 0:02:27.9]} 13... Qb8 {[%clk 0:02:12.8]}
14. Rb1 {[%clk 0:02:24.9]} 14... Qb4 {[%clk 0:01:57.9]} 15. Qd3 {[%clk
0:02:21.6]} 15... Rfe8 {[%clk 0:01:54.8]} 16. Rfe1 {[%clk 0:02:19]} 16... Be6
{[%clk 0:01:40.2]} 17. Nxe6 {[%clk 0:02:07.5]} 17... Rxe6 {[%clk 0:01:39.8]} 18.
Re2 {[%clk 0:01:44.7]} 18... Nd7 {[%clk 0:01:39.1]} 19. Rc2 {[%clk 0:01:00.9]}
19... Nc5 {[%clk 0:01:21.8]} 20. Qf1 {[%clk 0:00:36.9]} 20... Nxe4 {[%clk
0:01:13.5]} 21. Nxe4 {[%clk 0:00:35.9]} 21... Rxe4 {[%clk 0:01:14.4]} 22. Bg3
{[%clk 0:00:35.5]} 22... c5 {[%clk 0:01:08.9]} 23. b3 {[%clk 0:00:34]} 23...
Rae8 {[%clk 0:01:05.9]} 24. Kh2 {[%clk 0:00:33.1]} 24... Bd4 {[%clk 0:01:01.6]}
25. Qd3 {[%clk 0:00:31.8]} 25... h5 {[%clk 0:00:58]} 26. h4 {[%clk 0:00:30.9]}
26... a5 {[%clk 0:00:52.7]} 27. Qd2 {[%clk 0:00:21.2]} 27... Qxd2 {[%clk
0:00:49.1]} 28. Rxd2 {[%clk 0:00:21.2]} 28... Re2 {[%clk 0:00:49]} 29. Rbd1
{[%clk 0:00:20.2]} 29... Rxd2 {[%clk 0:00:45.5]} 30. Rxd2 {[%clk 0:00:20.2]}
30... a4 {[%clk 0:00:45]} 31. Kh3 {[%clk 0:00:17.8]} 31... Rb8 {[%clk 0:00:43]}
32. Rd3 {[%clk 0:00:17.1]} 32... Kg7 {[%clk 0:00:39.4]} 33. f3 {[%clk
0:00:16.2]} 33... axb3 {[%clk 0:00:38.8]} 34. axb3 {[%clk 0:00:15.8]} 34... Ra8
{[%clk 0:00:38.8]} 35. Bf4 {[%clk 0:00:15.3]} 35... Ra1 {[%clk 0:00:36.7]} 36.
Be3 {[%clk 0:00:14.8]} 36... Be5 {[%clk 0:00:32.6]} 37. g3 {[%clk 0:00:13.8]}
37... Kf6 {[%clk 0:00:30.4]} 38. Kg2 {[%clk 0:00:12.8]} 38... Ke6 {[%clk
0:00:30.1]} 39. f4 {[%clk 0:00:11.4]} 39... Bg7 {[%clk 0:00:26.4]} 40. Kf3
{[%clk 0:00:11.4]} 40... f5 {[%clk 0:00:26.3]} 41. Bf2 {[%clk 0:00:11]} 41...
Bf6 {[%clk 0:00:23.6]} 42. Re3+ {[%clk 0:00:11.1]} 42... Kd7 {[%clk 0:00:23.7]}
43. Rd3 {[%clk 0:00:12]} 43... Ra5 {[%clk 0:00:18]} 44. Be3 {[%clk 0:00:10.9]}
44... c6 {[%clk 0:00:15.5]} 45. Bf2 {[%clk 0:00:10.9]} 45... Kc7 {[%clk
0:00:15.1]} 46. Re3 {[%clk 0:00:10.3]} 46... Ra8 {[%clk 0:00:14]} 47. Re6 {[%clk
0:00:09.9]} 47... Rf8 {[%clk 0:00:14.5]} 48. Re3 {[%clk 0:00:08.3]} 48... Kd7
{[%clk 0:00:14.1]} 49. Rd3 {[%clk 0:00:08.4]} 49... Kc7 {[%clk 0:00:13.8]} 50.
Re3 {[%clk 0:00:08.2]} 50... Rf7 {[%clk 0:00:11.8]} 51. Rd3 {[%clk 0:00:07.3]}
51... Re7 {[%clk 0:00:11.1]} 52. Be3 {[%clk 0:00:06.8]} 52... Re8 {[%clk
0:00:11.5]} 53. Bf2 {[%clk 0:00:06.6]} 53... Bb2 {[%clk 0:00:11.3]} 54. Be3
{[%clk 0:00:06.5]} 54... Ba3 {[%clk 0:00:11.4]} 55. Bf2 {[%clk 0:00:06.4]} 55...
Bb4 {[%clk 0:00:11.2]} 56. Be3 {[%clk 0:00:06.6]} 56... Re4 {[%clk 0:00:10.7]}
57. Bf2 {[%clk 0:00:06.4]} 57... Kd7 {[%clk 0:00:11.1]} 58. Be3 {[%clk
0:00:06.5]} 58... Ke6 {[%clk 0:00:11.4]} 59. Bf2 {[%clk 0:00:06]} 59... d5
{[%clk 0:00:11.7]} 60. cxd5+ {[%clk 0:00:05.8]} 60... cxd5 {[%clk 0:00:12.6]}
61. Be3 {[%clk 0:00:06]} 61... d4 {[%clk 0:00:12.6]} 62. Bf2 {[%clk 0:00:05.9]}
62... Kd5 {[%clk 0:00:13.4]} 63. Rd1 {[%clk 0:00:05.7]} 63... Re6 {[%clk
0:00:12.9]} 64. Ra1 {[%clk 0:00:04.9]} 64... d3 {[%clk 0:00:12.6]} 65. Rd1
{[%clk 0:00:04.6]} 65... d2 {[%clk 0:00:10.8]} 66. Be3 {[%clk 0:00:04.8]} 66...
c4 {[%clk 0:00:10.7]} 67. bxc4+ {[%clk 0:00:04.3]} 67... Kxc4 {[%clk 0:00:10.9]}
68. Bxd2 {[%clk 0:00:04.7]} 68... Rd6 {[%clk 0:00:09.6]} 69. Rc1+ {[%clk
0:00:04.5]} 69... Kb5 {[%clk 0:00:08.8]} 70. Bxb4 {[%clk 0:00:05.4]} 70... Kxb4
{[%clk 0:00:09.7]} 71. Rb1+ {[%clk 0:00:05.4]} 71... Kc4 {[%clk 0:00:06.2]} 72.
Rc1+ {[%clk 0:00:06.3]} 72... Kd5 {[%clk 0:00:06.2]} 73. Rd1+ {[%clk 0:00:04.2]}
73... Ke6 {[%clk 0:00:07.1]} 74. Re1+ {[%clk 0:00:04.4]} 74... Kf6 {[%clk
0:00:07]} 75. Re3 {[%clk 0:00:05.3]} 75... Re6 {[%clk 0:00:06.5]} 76. Re2 {[%clk
0:00:06.2]} 76... Rxe2 {[%clk 0:00:06.4]} 77. Kxe2 {[%clk 0:00:06.9]} 77... Ke6
{[%clk 0:00:07.2]} 78. Ke3 {[%clk 0:00:06.9]} 78... Kd5 {[%clk 0:00:06.8]}
1/2-1/2

[Event "*** Titled Tuesday Blitz"]
[Site "Chess.com"]
[Date "2020.05.19"]
[Round "7"]
[White "bait_or_mate"]
[Black "IMRosen"]
[Result "0-1"]
[WhiteElo "2455"]
[BlackElo "2600"]
[TimeControl "180+1"]
[EndTime "13:22:19 PDT"]
[Termination "IMRosen won by resignation"]

1. d4 {[%clk 0:03:00.9]} 1... d5 {[%clk 0:02:59.8]} 2. c4 {[%clk 0:03:01]} 2...
e6 {[%clk 0:03:00.2]} 3. Nf3 {[%clk 0:03:01.6]} 3... Nf6 {[%clk 0:03:00.5]} 4.
g3 {[%clk 0:03:02.1]} 4... dxc4 {[%clk 0:03:00.5]} 5. Bg2 {[%clk 0:03:02.4]}
5... Bb4+ {[%clk 0:03:00.8]} 6. Nbd2 {[%clk 0:03:01.6]} 6... b5 {[%clk 0:02:57]}
7. O-O {[%clk 0:02:56.9]} 7... O-O {[%clk 0:02:54.8]} 8. Ne1 {[%clk 0:02:55.4]}
8... Nd5 {[%clk 0:02:52.6]} 9. Nc2 {[%clk 0:02:53.2]} 9... Be7 {[%clk
0:02:48.1]} 10. e4 {[%clk 0:02:43.4]} 10... Nb6 {[%clk 0:02:48.2]} 11. Qe2
{[%clk 0:02:35.2]} 11... Bb7 {[%clk 0:02:47.3]} 12. Rd1 {[%clk 0:02:35.2]} 12...
N8d7 {[%clk 0:02:46.7]} 13. b3 {[%clk 0:02:28.5]} 13... c3 {[%clk 0:02:36.5]}
14. Nf3 {[%clk 0:02:12.8]} 14... b4 {[%clk 0:02:33.2]} 15. Bf4 {[%clk
0:01:52.5]} 15... a5 {[%clk 0:02:32.2]} 16. h4 {[%clk 0:01:26]} 16... Re8 {[%clk
0:02:29.6]} 17. Qe3 {[%clk 0:01:16.9]} 17... Nf6 {[%clk 0:02:25.2]} 18. Ne5
{[%clk 0:01:14.6]} 18... Qc8 {[%clk 0:02:16.7]} 19. g4 {[%clk 0:01:11.6]} 19...
c5 {[%clk 0:02:01.8]} 20. Qe2 {[%clk 0:00:47]} 20... cxd4 {[%clk 0:01:50.9]} 21.
Nxd4 {[%clk 0:00:47.9]} 21... Nfd7 {[%clk 0:01:36.5]} 22. g5 {[%clk 0:00:41.9]}
22... Nxe5 {[%clk 0:01:28.8]} 23. Bxe5 {[%clk 0:00:42.8]} 23... Nd7 {[%clk
0:01:25.4]} 24. Bg3 {[%clk 0:00:39.5]} 24... Nf8 {[%clk 0:00:57.9]} 25. Qe3
{[%clk 0:00:34.4]} 25... Bc5 {[%clk 0:00:56.4]} 26. Qf3 {[%clk 0:00:32.8]} 26...
Rd8 {[%clk 0:00:47.5]} 27. Nb5 {[%clk 0:00:31.3]} 27... Qc6 {[%clk 0:00:45.8]}
28. Nc7 {[%clk 0:00:21.2]} 28... Rac8 {[%clk 0:00:37.1]} 29. Rxd8 {[%clk
0:00:15.3]} 29... Rxd8 {[%clk 0:00:37.4]} 30. Rd1 {[%clk 0:00:15.6]} 30... Rxd1+
{[%clk 0:00:26]} 31. Qxd1 {[%clk 0:00:16.5]} 31... c2 {[%clk 0:00:24.5]} 32.
Qxc2 {[%clk 0:00:15.4]} 32... Nd7 {[%clk 0:00:15.2]} 33. Qc4 {[%clk 0:00:14.1]}
33... a4 {[%clk 0:00:12.3]} 34. Qb5 {[%clk 0:00:09.8]} 34... Qxb5 {[%clk
0:00:08.2]} 35. Nxb5 {[%clk 0:00:10.7]} 35... e5 {[%clk 0:00:07.4]} 36. bxa4
{[%clk 0:00:09.9]} 36... Nb6 {[%clk 0:00:07.1]} 37. a5 {[%clk 0:00:09.5]} 37...
Nc4 {[%clk 0:00:07.6]} 38. Bf1 {[%clk 0:00:05.8]} 38... Nxa5 {[%clk 0:00:07.8]}
39. Bxe5 {[%clk 0:00:05.8]} 39... Bxe4 {[%clk 0:00:06.9]} 40. Bd6 {[%clk
0:00:03.6]} 40... Bxd6 {[%clk 0:00:05.4]} 41. Nxd6 {[%clk 0:00:04.5]} 41... Bd5
{[%clk 0:00:06]} 42. f4 {[%clk 0:00:01.5]} 42... Bxa2 {[%clk 0:00:06.2]} 43. f5
{[%clk 0:00:02.1]} 43... b3 {[%clk 0:00:06.6]} 44. Nc4 {[%clk 0:00:02.2]} 44...
Nc6 {[%clk 0:00:03.8]} 45. Nb2 {[%clk 0:00:02.5]} 45... Bb1 {[%clk 0:00:03.8]}
46. f6 {[%clk 0:00:02.5]} 46... gxf6 {[%clk 0:00:04.6]} 47. gxf6 {[%clk
0:00:03]} 47... Kf8 {[%clk 0:00:05.1]} 48. Bc4 {[%clk 0:00:03.4]} 48... Nd4
{[%clk 0:00:05]} 49. Kf2 {[%clk 0:00:03.9]} 49... Bc2 {[%clk 0:00:05.7]} 50. Ke3
{[%clk 0:00:04.1]} 50... Nf5+ {[%clk 0:00:06.2]} 51. Kd2 {[%clk 0:00:04.1]}
51... Nxh4 {[%clk 0:00:06.6]} 52. Kc3 {[%clk 0:00:04.5]} 52... Nf3 {[%clk
0:00:06.1]} 53. Bxb3 {[%clk 0:00:04.5]} 53... Bxb3 {[%clk 0:00:07]} 54. Kxb3
{[%clk 0:00:05.4]} 54... Ng5 {[%clk 0:00:05.6]} 55. Kc4 {[%clk 0:00:04.4]} 55...
Ne4 {[%clk 0:00:06.1]} 56. Kd4 {[%clk 0:00:04.8]} 56... Nxf6 {[%clk 0:00:06.6]}
57. Ke5 {[%clk 0:00:05.4]} 57... Nd7+ {[%clk 0:00:06.3]} 58. Kf5 {[%clk
0:00:05]} 58... Kg7 {[%clk 0:00:06]} 59. Nd3 {[%clk 0:00:05.2]} 59... Nf8 {[%clk
0:00:06.3]} 60. Nf4 {[%clk 0:00:05]} 60... Ne6 {[%clk 0:00:05.5]} 61. Nh5+
{[%clk 0:00:04.9]} 61... Kh6 {[%clk 0:00:05.3]} 62. Nf6 {[%clk 0:00:03]} 62...
Ng7+ {[%clk 0:00:05.4]} 63. Kg4 {[%clk 0:00:02.9]} 63... Kg6 {[%clk 0:00:06]}
64. Nd5 {[%clk 0:00:02.4]} 64... Ne6 {[%clk 0:00:04.8]} 65. Kh4 {[%clk
0:00:02.5]} 65... f5 {[%clk 0:00:04.2]} 66. Ne3 {[%clk 0:00:02.1]} 66... Kf6
{[%clk 0:00:04.1]} 67. Ng2 {[%clk 0:00:02.3]} 67... Ke5 {[%clk 0:00:03.9]} 68.
Kg3 {[%clk 0:00:02.8]} 68... Kf6 {[%clk 0:00:02.9]} 69. Kf3 {[%clk 0:00:02.6]}
69... Kg5 {[%clk 0:00:03.3]} 70. Ne3 {[%clk 0:00:02.2]} 70... h5 {[%clk
0:00:03.7]} 71. Nf1 {[%clk 0:00:02.2]} 71... h4 {[%clk 0:00:04.1]} 72. Nh2
{[%clk 0:00:02.1]} 72... Nd4+ {[%clk 0:00:04.6]} 73. Kg2 {[%clk 0:00:02.1]}
73... Kf4 {[%clk 0:00:03.9]} 74. Nf1 {[%clk 0:00:03]} 74... Kg4 {[%clk
0:00:03.9]} 75. Nh2+ {[%clk 0:00:03]} 75... Kg5 {[%clk 0:00:04.5]} 76. Nf1
{[%clk 0:00:03.9]} 76... Ne6 {[%clk 0:00:05.1]} 77. Nh2 {[%clk 0:00:03.9]} 77...
Nf4+ {[%clk 0:00:05.5]} 78. Kf3 {[%clk 0:00:03.7]} 78... Ng6 {[%clk 0:00:06.2]}
79. Kg2 {[%clk 0:00:03.8]} 79... Ne5 {[%clk 0:00:06.8]} 80. Kf2 {[%clk
0:00:03.7]} 80... Ng4+ {[%clk 0:00:06.9]} 0-1